Cogmind - Beta 16.1 @@@ ROGUE MODE // 2026.02.10 @ 04:00:06 Player: Megaknight51 Result: Destroyed by Autobeam Turret with Autobeam Performance ------------- Evolutions (0) 0 Regions Visited (2) 400 Robots Destroyed (32) 160 Value Destroyed (660) 660 Prototype IDs (14) 280 Alien Tech Used (0) 0 Bonus (-79) -79 TOTAL SCORE: 1421 Bonus ------- Friendly Fire -79 Cogmind --------- Core Integrity 0/250 Matter 292/300 Energy 100/100 System Corruption 0% Temperature Cool (6) Movement Walking (260) Ox2 Location -10/Subcaves Parts ------- > --- POWER (1) -------- (None) > --- PROPULSION (2) --- Aluminum Leg Aluminum Leg > --- UTILITY (2) ------ High-capacity Storage Unit V3-11A's Pendant > --- WEAPON (2) ------- Subdweller Machine Gun Slug Cannon > --- INVENTORY (20) --- Aluminum Leg Aluminum Leg Medium Matter Pod (100) Medium Matter Pod (100) Structural Scanner Sensor Array Signal Interpreter Seismic Detector Scrap Shield Tower Shield Battle Cannon Subdweller Shrapnel Launcher 1B-0RG's Assimilator Makeshift Spear Peak State ------------ > --- POWER ------------ Makeshift Power Source > --- PROPULSION ------- Aluminum Leg Aluminum Leg > --- UTILITY ---------- High-capacity Storage Unit V3-11A's Pendant > --- WEAPON ----------- Subdweller Machine Gun Slug Cannon > --- INVENTORY -------- Aluminum Leg Aluminum Leg Medium Matter Pod Medium Matter Pod Structural Scanner Sensor Array Signal Interpreter Seismic Detector Scrap Shield Tower Shield Battle Cannon Subdweller Shrapnel Launcher 1B-0RG's Assimilator Makeshift Spear [Rating: 26] Favorites ----------- Power Makeshift Power Source Engine Makeshift Power Source Power Core Light Nuclear Core Propulsion Light Treads Treads Light Treads Leg Aluminum Leg Utility High-capacity Storage Unit Device V3-11A's Pendant Storage High-capacity Storage Unit Processor Visual Processing Unit Weapon Subdweller Machine Gun Energy Gun Medium Laser Energy Cannon Subdweller Beam Cannon Ballistic Gun Subdweller Machine Gun Ballistic Cannon Slug Cannon Special Weapon Welding Torch Build | -11 -10 -10 ------- Run | Yrd Mat Sub Slots Evolved . | . . . Power . | . . . Propulsion . | . . . Utility . | . . . Weapon . | . . . Parts Attached 32 | 6 10 16 Power 5 | 1 2 2 Engine 4 | 1 1 2 Core 1 | . 1 . Reactor . | . . . Propulsion 6 | 2 1 3 Treads 4 | 2 1 1 Leg 2 | . . 2 Wheel . | . . . Hover . | . . . Flight . | . . . Utility 8 | 1 3 4 Device 4 | . . 4 Storage 3 | 1 2 . Processor 1 | . 1 . Hackware . | . . . Protection . | . . . Artifact . | . . . Weapon 13 | 2 4 7 Energy Gun 4 | 2 2 . Energy Cannon 2 | . . 2 Ballistic Gun 5 | . 2 3 Ballistic Cannon 1 | . . 1 Launcher . | . . . Special Weapon 1 | . . 1 Impact Weapon . | . . . Slashing Weapon . | . . . Piercing Weapon . | . . . Special Melee Weapon . | . . . Unidentified Prototypes 1 | . . 1 Parts Lost 9 | . 2 7 Power 1 | . . 1 Propulsion 4 | . 1 3 Utility 1 | . . 1 Weapon 3 | . 1 2 Highest Loss Streak 3 | . 1 3 To Critical Strikes 1 | . . 1 Average Backups 15 | 1 8 18 Power . | . 1 . Propulsion 2 | . . 3 Utility 8 | . 5 8 Weapon 4 | . . 5 Tool/Special . | . . . Unused Backups 20 | . . 20 Power . | . . . Propulsion 2 | . . 2 Utility 10 | . . 10 Weapon 7 | . . 7 Tool/Special 1 | . . 1 Average Slot Usage (%) 94 | . 93 94 Engine 9 | . 2 11 Core 3 | . 11 1 Treads 15 | . 27 11 Leg 11 | . . 15 Device 8 | . . 10 Storage 14 | . 14 14 Processor 2 | . 11 . Energy Gun 3 | . 12 . Energy Cannon 6 | . . 7 Ballistic Gun 10 | . 11 9 Ballistic Cannon 7 | . . 9 Peak Build Rating 26 | 6 12 26 Average Rating 15 | 4 9 16 On Entrance 6 | . 6 12 Avg Prop Armor Cover (%) . | . . . Naked Turns . | . . . Heaviest Build 63 | 14 49 63 Greatest Support 40 | 40 40 40 Greatest Overweight (x) 18 | . 2 18 Average Overweight (x) 1 | . . 1 Largest Inventory Capacity 20 | 8 20 20 Average Capacity 19 | 7 17 20 Most Carried 20 | 3 17 20 Average Carried 16 | 1 8 19 Final Capacity 20 | 8 20 20 Final Carried 20 | 3 17 20 Class Distribution -------------------- 91% | Mutant 8% | Scavenger-Mutant Dominant Class ---------------- Mutant | -10/Materials Mutant | -10/Subcaves Resources | -11 -10 -10 ----------- Run | Yrd Mat Sub Matter Collected 1156 | 255 218 683 Remotely . | . . . Salvage Created 896 | 30 329 537 Parts 54 | 3 25 26 Haulers Intercepted 1 | . 1 . Recyclers Shooed 1 | 1 . . Parts Field Recycled . | . . . Retrieved Matter . | . . . Parts Self-Destructed 18 | . . 18 Prevented . | . . . Parts Restored . | . . . Kills | -11 -10 -10 ------- Run | Yrd Mat Sub Combat Hostiles Destroyed 24 | . 8 16 Guns 15 | . 8 7 Cannons 7 | . . 7 Classes Destroyed 11 | 1 7 3 Worker 2 | . 2 . Builder 2 | . 2 . Tunneler 1 | 1 . . Hauler 1 | . 1 . Operator 1 | . 1 . Watcher 1 | . 1 . Swarmer 12 | . 6 6 Grunt 4 | . 2 2 Sentry 1 | . . 1 Artisan 1 | . . 1 Subdweller 7 | . . 7 Best Kill Streak 5 | 1 5 3 Combat Bots Only 3 | . 2 3 Max Kills in Single Turn 1 | 1 1 1 Gunslinging . | . . . Exploded . | . . . Melee . | . . . Uniques/NPCs Destroyed . | . . . Combat | -11 -10 -10 -------- Run | Yrd Mat Sub Hostile Shots Fired 206 | . 76 130 Missed 66 | . 19 47 Hits 140 | . 57 83 Projectile 140 | . 57 83 Critical Strikes 5 | . . 5 Damage Taken 1563 | . 512 1051 Core 257 | . 84 173 Absorbed by Shields . | . . . Core Remaining (%) 100 | 100 . . Volleys Fired 137 | 3 55 79 Largest 2 | 2 2 2 Hottest 160 | 100 100 160 Shots Fired 250 | 6 93 151 Gun 167 | 6 93 68 Cannon 82 | . . 82 Launcher . | . . . Special 1 | . . 1 Kinetic 85 | . 6 79 Thermal 139 | 6 87 46 Explosive . | . . . Electromagnetic 26 | . . 26 Robot Hit Streak 9 | 1 8 9 Robot Miss Streak 7 | 2 7 5 Penetration Max . | . . . Secondary Targets 1 | . 1 . Max Gunslinging Chain 1 | . 1 . Shots Hit Robots 97 | 2 45 50 Core Hits 42 | 2 20 20 Critical Kills 3 | . . 3 Critical Parts Destroyed 1 | . . 1 Critical Strikes 10 | . 5 5 Burn 5 | . 5 . Meltdown 1 | . . 1 Destroy 4 | . . 4 Melee Attacks . | . . . Impact . | . . . Slashing . | . . . Piercing . | . . . Sneak Attacks . | . . . Combat Hostiles . | . . . Follow-up Attacks . | . . . Damage Inflicted 1655 | 31 575 1049 Guns 1041 | 25 574 442 Cannons 607 | . . 607 Explosions . | . . . Melee . | . . . Ramming 7 | 6 1 . Kinetic 361 | . 21 340 Thermal 1075 | 25 553 497 Explosive . | . . . Electromagnetic 212 | . . 212 Impact . | . . . Slashing . | . . . Piercing . | . . . Highest Corruption . | . . . Average Corruption . | . . . Corruption Purged . | . . . Corruption Blocked . | . . . Overload Shots . | . . . Overflow Damage 25 | . . 25 Projectiles 25 | . . 25 Explosions . | . . . Melee . | . . . Knockbacks 1 | . . 1 Impact . | . . . Kinetic 1 | . . 1 Secondary . | . . . Self-Inflicted Damage . | . . . Shots . | . . . Rammed 1 | 1 . . Targets Rammed 2 | 1 1 . Kicked . | . . . Crushed 1 | . 1 . Highest Temperature 512 | 99 512 348 Average Temperature 143 | 47 168 100 Received Heat Transfer 423 | . 78 345 Effects 7 | . 6 1 Shutdowns 3 | . 2 1 Energy Bleed 1 | . 1 . Interference 1 | . 1 . Matter Decay 2 | . 2 . Siege Activations . | . . . Martial Activations . | . . . Shielding Activations . | . . . Robots Disrupted . | . . . Combat Hostiles . | . . . Robots Corrupted 1 | . . 1 Combat Hostiles 1 | . . 1 Parts Fried 3 | . . 3 Impact Corruptions . | . . . Robots Melted 1 | . . 1 Combat Hostiles 1 | . . 1 Parts Melted 5 | . 4 1 Heat Transferred 2738 | 74 1998 666 Parts Sabotaged . | . . . Parts Stolen . | . . . Parts Stripped . | . . . Power Chain Reactions . | . . . Alert | -11 -10 -10 ------- Run | Yrd Mat Sub Maximum Alert Level . | . . . Low Security (%) 100 | 100 100 . Level 1 . | . . . Level 2 . | . . . Level 3 . | . . . Level 4 . | . . . Level 5 . | . . . High Security . | . . . Max Security . | . . . Peak Influence 70 | 5 70 . Initial . | . . . Average 9 | . 10 . Influence Increases 593 | 5 266 322 Destroy 0b10 Robot/C 340 | . 160 180 Destroy 0b10 Robot/NC 40 | 5 35 . Destroy Leader 54 | . 34 20 Allied During Kill 2 | . . 2 Successful Hack 6 | . 6 . Destroy Structure 1 | . 1 . Lose Combat Pursuer 150 | . 30 120 Influence Decreases 512 | 5 266 241 Time Decay 423 | 5 246 172 Lost Part 49 | . 20 29 Lost Ally 40 | . . 40 Squads Dispatched 1 | . 1 . Investigation . | . . . Extermination . | . . . Reinforcement 1 | . 1 . Assault . | . . . Garrison . | . . . Intercept . | . . . Searches Triggered . | . . . Construction Impeded . | . . . Haulers Reinforced . | . . . Active Scanning Responses . | . . . Cargo Convoy Interrupts . | . . . Stealth | -11 -10 -10 --------- Run | Yrd Mat Sub Distress Signals 1 | . 1 . Communications Jammed . | . . . Distress Signals . | . . . Times Spotted 53 | . 24 29 Peak Tracking Total 6 | . 5 6 Tactical Retreats 6 | . 2 4 Traps | -11 -10 -10 ------- Run | Yrd Mat Sub Traps Triggered 2 | . 1 1 Indirectly . | . . . Trap Hack Attempts . | . . . Triggered . | . . . Disarmed . | . . . Reprogrammed . | . . . Reused . | . . . Traps Extracted . | . . . Installed . | . . . Triggered . | . . . Machines | -11 -10 -10 ---------- Run | Yrd Mat Sub Machines Disabled 2 | . . 2 Max in Single Turn 1 | . . 1 Machines Repaired . | . . . Machines Dismantled . | . . . Machines Sabotaged . | . . . Overloaded Fab Kills . | . . . Hacking | -11 -10 -10 --------- Run | Yrd Mat Sub Machines Accessed 6 | . 2 4 Terminals 2 | . 2 . Fabricators . | . . . Repair Stations . | . . . Recycling Units . | . . . Scanalyzers . | . . . Garrison Access . | . . . Total Hacks 13 | . 4 9 Successful 10 | . 1 9 Failed 3 | . 3 . Catastrophic 1 | . 1 . Database Lockouts . | . . . Manual 4 | . 4 . Terminals 4 | . 4 . Fabricators . | . . . Repair Stations . | . . . Recycling Units . | . . . Scanalyzers . | . . . Garrison Access . | . . . Terminal Hacks 10 | . 1 9 Record 6 | . . 6 Open Door 1 | . . 1 Terminal Index 1 | . 1 . Proto ID Catalog 1 | . . 1 Release Object 1 | . . 1 Fabricator Hacks . | . . . Repair Station Hacks . | . . . Recycling Unit Hacks . | . . . Scanalyzer . | . . . Garrison Access Hacks . | . . . Unauthorized Hacks . | . . . Terminals . | . . . Fabricators . | . . . Repair Stations . | . . . Recycling Units . | . . . Scanalyzers . | . . . Garrison Access . | . . . Data Cores Recovered . | . . . Used . | . . . Hacking Detections 2 | . 2 . Full Trace Events . | . . . Feedback Events . | . . . Feedback Blocked . | . . . Robot Schematics Acquired . | . . . Robots Built . | . . . Authchips . | . . . Time . | . . . Total Robot Build Rating . | . . . Part Schematics Acquired . | . . . Parts Built . | . . . Authchips . | . . . Time . | . . . Total Part Build Rating . | . . . Part Studies Acquired . | . . . Parts Repaired . | . . . Time . | . . . Parts Recycled . | . . . Recycled Matter . | . . . Retrieved Matter . | . . . Retrieved Components . | . . . Parts Scanalyzed . | . . . Part Schematics Acquired . | . . . Parts Damaged . | . . . Bothacking | -11 -10 -10 ------------ Run | Yrd Mat Sub Used RIF Installer . | . . . Robots Hacked . | . . . Non-combat . | . . . Combat . | . . . Robot Hacks Applied . | . . . Relay Couplers Released . | . . . Fabnet Peak Effective % . | . . . Robots Rewired . | . . . Allies Hacked . | . . . Hacks Repelled . | . . . Allies | -11 -10 -10 -------- Run | Yrd Mat Sub Total Allies 3 | . . 3 Largest Group 2 | . . 2 Highest-Rated Group 38 | . . 38 Highest-Rated Ally 19 | . . 19 Total Orders . | . . . Ally Attacks 8 | . . 8 Total Damage 92 | . . 92 Kills . | . . . Allies Corrupted . | . . . Allies Melted . | . . . Intel | -11 -10 -10 ------- Run | Yrd Mat Sub Active Infowar (turns) 2677 | . 184 2493 Optics 1741 | . 184 1557 Terrain 936 | . . 936 Robot Analysis Total . | . . . Derelict Logs Recovered 3 | . . 3 Drone Launches . | . . . Drone Recoveries . | . . . Exploration | -11 -10 -10 ------------- Run | Yrd Mat Sub Turns Passed 8161 | 114 1767 6280 Spaces Moved 3073 | 60 734 2279 Core 16 | 3 . 13 Treads 1818 | 57 734 1027 Legs 1239 | . . 1239 Wheels . | . . . Hover . | . . . Flight . | . . . Fastest Speed 50 | 50 160 240 Average Speed 246 | 154 215 259 Slowest Speed 950 | 160 320 950 Overloaded Moves . | . . . Propulsion Burnouts . | . . . Robots Hopped . | . . . Potential Cave-ins . | . . . Cave-ins Triggered . | . . . Exploration Rate (%) 66 | 5 96 97 Regions Visited 2 Branch Regions 1 Pre-discovered Areas 1 | . . 1 Known Exits Taken . | . . . Unknown Exits Taken 2 | 1 1 . Scrap Searched 10 | . . 10 Spaces Dug 4 | . . 4 Terrain Destroyed 20 | . . 20 Melee . | . . . Projectile 20 | . . 20 AOE . | . . . Terrain Rammed . | . . . Walls Destroyed . | . . . Machines Disabled . | . . . Actions | -11 -10 -10 --------- Run | Yrd Mat Sub Total 3402 | 72 824 2506 Wait 94 | . . 94 Move 3072 | 60 733 2279 Hop . | . . . Pick Up 31 | 3 15 13 Fast Attach 15 | 6 4 5 Attach 7 | . 2 5 Detach 4 | . 1 3 Swap 18 | . 9 9 Drop 23 | . 4 19 Fire 137 | 3 55 79 Melee . | . . . Ram . | . . . Kick . | . . . Crush 1 | . 1 . Escape Stasis . | . . . Rewire . | . . . Trap . | . . . Miscellaneous . | . . . Route ------- -11/Scrapyard -10/Materials (discovered 5 exits: [*Mat x3] / [*Min] / *Sub) -10/Subcaves (discovered 3 exits: [*Mat x2] / *Rec) History --------- Turn | Location | Event 31 | -11/Scrapyard | Discovered new exit (range 16) 115 | -11/Scrapyard | Entered Materials 306 | -10/Materials | Build established: Mutant 403 | -10/Materials | Discovered new exit (range 3) 602 | -10/Materials | Discovered new exit (range 14) 903 | -10/Materials | Discovered new exit (range 3) 1482 | -10/Materials | Build established: Scavenger-Mutant 1577 | -10/Materials | Discovered new exit (range 13) 1776 | -10/Materials | Discovered new exit (range 12) 1882 | -10/Materials | Entered Subcaves 1954 | -10/Subcaves | Core integrity fell below 50% 2018 | -10/Subcaves | Shifting Twisted Machinery released Sub. Beam Cannon 2048 | -10/Subcaves | Shifting Twisted Machinery released Sub. Machine Gun 2144 | -10/Subcaves | Build established: Mutant 2332 | -10/Subcaves | Discovered new exit (range 12) 2355 | -10/Subcaves | Disturbed a concealed Subdweller 3118 | -10/Subcaves | Discovered new exit (range 8) 3188 | -10/Subcaves | Identified exit to Recycling 3280 | -10/Subcaves | Visited Clippyterm 3288 | -10/Subcaves | Learned Factory stockpile data 3288 | -10/Subcaves | Learned Research security intel 3406 | -10/Subcaves | Learned Materials terminal intel 3607 | -10/Subcaves | Learned location of 1 exit from Materials 3737 | -10/Subcaves | Disturbed a concealed Subdweller 3796 | -10/Subcaves | Lost 3 parts (1n1u1w) 5141 | -10/Subcaves | Shifting Twisted Machinery released Sub. Shrapnel Launcher 5192 | -10/Subcaves | Shifting Twisted Machinery released Sub. Machine Gun 5889 | -10/Subcaves | Visited triangular shrine 5910 | -10/Subcaves | Found Prototype Device 5910 | -10/Subcaves | Identified V3-11A's Pendant 5915 | -10/Subcaves | Befriended Subdweller 6369 | -10/Subcaves | Learned location of Zion (-6) 6369 | -10/Subcaves | Met a Zionite searching for "candidates" 6620 | -10/Subcaves | Shifting Twisted Machinery released Sub. Shrapnel Launcher 6646 | -10/Subcaves | Shifting Twisted Machinery released Battle Cannon 6985 | -10/Subcaves | Befriended Subdweller 7038 | -10/Subcaves | A swath of the cavern ceiling suddenly collapsed 7445 | -10/Subcaves | Visited 4L-MR0's lab 7531 | -10/Subcaves | Found Prototype Special Melee Weapon 7554 | -10/Subcaves | Found Tower Shield 7832 | -10/Subcaves | Ambushed by Subdweller buried in earth 7835 | -10/Subcaves | Befriended Subdweller 7835 | -10/Subcaves | Core integrity fell below 20% 8162 | -10/Subcaves | Destroyed by Autobeam Turret with Autobeam Last Messages --------------- 07832_ G-34 Mercenary destroyed. 07832_ Slug penetrates Wall. 07833_ A0-7E7(R): "ARGHSUB!" 07835_ A0-7E7(R): "GOODGUYZ!" 07835_ G-47 Trooper destroyed. 07836_ Heat Sink fries itself beyond repair. 07840_ Acquired 40 matter. 07846_ Sml. Laser fries itself beyond repair. 07852_ Lgt. Nuclear Core fries itself beyond repair. 07856_ Dropped Scrap Shield. 07857_ Acquired Scrap Shield. 07860_ Acquired 5 matter. 07873_ Dropped Sub. Machine Gun. 07880_ Acquired 10 matter. 08060_ 7W-0HB(u) tweaks Twisted Machinery. 08062_ Triggered Piercing Trap. 08062_ Spikes shoot up from the floor. 08062_ Critical hit (Impale). 08132_ Acquired 8 matter. 08150_ Machine disabled. Map ----- +----------------------------------------------------+ | ##?# ##????????????????# #?????????????? | | ##?## ##?????????????????# ##?????????????? | | ##?# ##?????????????????# #?????????????? | | ### #??????#??????????# ##?????????????? | | ##??????????????### ##??????????????? | | #??????????????## ##???????????????? | | ##?##???????????# #????????????????? | | ####????#??#????#### #????????????????? | | ##???#????#####??# #????????????????? | | ####????????## ##?## #????????????????? | | ####??????????## ##?# ##????????????????? | | ?#??#??????#### ### ####?????????????????? | | ????????#?## #????????????????????? | | ??????#?### #????????????????????? | | ?????????# ### #????????????????????? | | ??##?##### ##?# ##????????????????????? | | ??# ## ## ###???????????????????? | | ???#"! #### # #???????????????????? | | ???##&##""## ## #???????????????????? | | ????#%% *% ######### #???????????????????? | | ??### %* "# ###????#??# #???????????????????? | | ?##?#&##""## ##??#??####% ####????????????????# | | ????# #### ##????##" "#???????????????## | | ????## #?###?# #??????????????## | | ???### ### #### ### #??????????????# | | #### ### ### ##" @t t "#??????????????# | | ## #"#R " " "#?????????????## | | ## % %##; """ """"#????????????## | | #######>#####????????????# | | """"" #??????##????????????????# | | """"" #" ###??????????????????????# | | """ ### ####?????????????????#??????## % | | """ ####"#####???????????????????????????## | | "# ###""##?#????#???????????????????????#?# | | "# ##### ##?#??????????????????????????#???##% | | ## ### " "##???????????????????????#?#?###?# | | ## ### "" #?????????????????#??????????#"### | | ## # "" #????#????????????????##?#??### # | | ## # "" #????#????????????????????????# # | | ### "" #???#????????????##??#????????# | | ## "" ## #?????????#???????????????????# | | ##"" # ###?#?????????????????????######## # | | "#### ###?????????????????????#?#"""""####### | | ##??#" # ##?????????????????????????#""X""#?#???? | | ##??#"# ###????#????????????#??????#" "#?????? | | #?#?#""" #???????????#????????????### ###????#? | | ##??#"" ^ ##?????????????#??????????## ####??#?? | | ###?## ######????#?#???#???????## ###### | | ###### ^## #???#??????????????# ## | | "# ## ##???????#??????#??# | +----------------------------------------------------+ Best States ------------- Heat Dissipation 25 Energy Generation 15 Energy Capacity 250 Matter Stores 300 Matter Capacity 300 Sight Range 21 Terrain Scan Range 16 Terrain Scan Density 10 Evasion (%) 40 Recoil Reduction 2 Item Schematics ----------------- None Robot Schematics ------------------ None Fabricated ------------ Nothing Repaired ---------- Nothing Studied --------- None Alien Tech Used ----------------- None Achievements -------------- SUBSUB Challenges ------------ None Game ------ Seed LaserThrowingNanoactuators Manual? 0 Play Time 00:25:03 Cumulative 58.6 hours Start 2026.02.10 @ 03:38:02 End 2026.02.10 @ 04:00:06 Sessions 1 Manual Loads 0 Difficulty Rogue Special Mode None Game No. 119 Rogue 119 Adventurer 0 Explorer 0 Win Type - Total 0 Types 0/0/0/0/0/0/0/0/0/0 Lore% 35 Gallery% 31 Achievement% 29 Wizard Run 0 Options --------- Layout 0 ASCII 0 Keyboard 1 Movement Arrows Keybinds 0 Fullscreen 1 Font 18/Smallcaps Map View 38x25 Zoom Use 68% Tactical HUD 1 Map Filters NONE Filters NONE Steam 1 RUN: 67dba1d7-8fe9-45fe-8cd3-e2a302ae895f